[Event "*** Titled Tuesday Blitz"]
[Site "Chess.com"]
[Date "2020.04.21"]
[Round "5"]
[White "Hangar-18"]
[Black "Egorov_Pavel"]
[Result "1-0"]
[WhiteElo "2252"]
[BlackElo "2359"]
[TimeControl "180+1"]
[EndTime "10:55:31 PDT"]
[Termination "Hangar-18 won by resignation"]

1. d4 {[%clk 0:02:37.2]} 1... Nf6 {[%clk 0:02:56.8]} 2. c4 {[%clk 0:02:37.5]}
2... g6 {[%clk 0:02:56.7]} 3. g3 {[%clk 0:02:37.3]} 3... d5 {[%clk 0:02:44.6]}
4. Bg2 {[%clk 0:02:35.2]} 4... Bg7 {[%clk 0:02:44.5]} 5. Nf3 {[%clk 0:02:34.3]}
5... O-O {[%clk 0:02:44.1]} 6. cxd5 {[%clk 0:02:34.8]} 6... Nxd5 {[%clk
0:02:44.1]} 7. O-O {[%clk 0:02:34]} 7... Nc6 {[%clk 0:02:43.7]} 8. Nc3 {[%clk
0:02:33.9]} 8... Nb6 {[%clk 0:02:43.3]} 9. e3 {[%clk 0:02:34.2]} 9... Re8 {[%clk
0:02:43.3]} 10. Nh4 {[%clk 0:02:34.5]} 10... e5 {[%clk 0:02:41.2]} 11. d5 {[%clk
0:02:25.5]} 11... Nb4 {[%clk 0:02:38.4]} 12. e4 {[%clk 0:02:19.2]} 12... c6
{[%clk 0:02:22.9]} 13. Qb3 {[%clk 0:01:56.8]} 13... Na6 {[%clk 0:02:14.6]} 14.
Be3 {[%clk 0:01:57.3]} 14... Bd7 {[%clk 0:02:02.8]} 15. Rfd1 {[%clk 0:01:53.5]}
15... Qc7 {[%clk 0:01:49.3]} 16. Rac1 {[%clk 0:01:51.6]} 16... c5 {[%clk
0:01:18.3]} 17. Nb5 {[%clk 0:01:43.6]} 17... Bxb5 {[%clk 0:01:13.8]} 18. Qxb5
{[%clk 0:01:44.5]} 18... Bf8 {[%clk 0:01:00.6]} 19. b4 {[%clk 0:01:34]} 19...
Rac8 {[%clk 0:00:50.2]} 20. Bh3 {[%clk 0:01:29.1]} 20... Qd6 {[%clk 0:00:34.2]}
21. bxc5 {[%clk 0:01:21.1]} 21... Qb8 {[%clk 0:00:29]} 22. cxb6 {[%clk
0:01:19.4]} 22... Rxc1 {[%clk 0:00:27.3]} 23. Rxc1 {[%clk 0:01:20.3]} 23... axb6
{[%clk 0:00:27.7]} 24. Bxb6 {[%clk 0:01:16.7]} 24... Be7 {[%clk 0:00:20.5]} 25.
Nf3 {[%clk 0:01:12.1]} 25... Qd6 {[%clk 0:00:17.8]} 26. Qxe8+ {[%clk 0:01:09.8]}
1-0

[Event "*** Titled Tuesday Blitz"]
[Site "Chess.com"]
[Date "2020.04.21"]
[Round "5"]
[White "KikaLaurincova"]
[Black "politeplayer"]
[Result "0-1"]
[WhiteElo "1972"]
[BlackElo "2167"]
[TimeControl "180+1"]
[EndTime "10:55:32 PDT"]
[Termination "politeplayer won on time"]

1. e4 {[%clk 0:03:00.9]} 1... c5 {[%clk 0:02:59.5]} 2. Nf3 {[%clk 0:02:59.6]}
2... e6 {[%clk 0:02:59.6]} 3. d4 {[%clk 0:02:59.2]} 3... cxd4 {[%clk 0:02:59.8]}
4. Nxd4 {[%clk 0:03:00.1]} 4... Nc6 {[%clk 0:03:00.2]} 5. Nc3 {[%clk 0:02:57.9]}
5... Qc7 {[%clk 0:03:00.6]} 6. Be3 {[%clk 0:02:56.4]} 6... a6 {[%clk 0:02:59.8]}
7. Nxc6 {[%clk 0:02:56]} 7... bxc6 {[%clk 0:02:56.3]} 8. Na4 {[%clk 0:02:32.5]}
8... Rb8 {[%clk 0:02:44.9]} 9. Bc4 {[%clk 0:02:27.9]} 9... Qa5+ {[%clk
0:02:34.9]} 10. c3 {[%clk 0:02:27.4]} 10... d5 {[%clk 0:02:28]} 11. exd5 {[%clk
0:02:26.8]} 11... cxd5 {[%clk 0:02:24.3]} 12. Bb3 {[%clk 0:02:24]} 12... Nf6
{[%clk 0:02:17.5]} 13. Qd4 {[%clk 0:02:23]} 13... Bd6 {[%clk 0:02:11.9]} 14. O-O
{[%clk 0:01:40.9]} 14... O-O {[%clk 0:02:10.9]} 15. Rfe1 {[%clk 0:01:31.6]}
15... Bd7 {[%clk 0:02:10.1]} 16. Bg5 {[%clk 0:01:30.2]} 16... Ne4 {[%clk
0:02:06.8]} 17. Be3 {[%clk 0:01:18.8]} 17... Qc7 {[%clk 0:01:41.2]} 18. h3
{[%clk 0:01:14.1]} 18... Bh2+ {[%clk 0:01:39.7]} 19. Kh1 {[%clk 0:01:13.8]}
19... Be5 {[%clk 0:01:39.5]} 20. Qd3 {[%clk 0:00:35.9]} 20... Bxa4 {[%clk
0:01:36.4]} 21. Bxa4 {[%clk 0:00:32.3]} 21... Rxb2 {[%clk 0:01:36.7]} 22. Qxa6
{[%clk 0:00:27.8]} 22... Nxf2+ {[%clk 0:01:23.9]} 23. Bxf2 {[%clk 0:00:17.7]}
23... Rxf2 {[%clk 0:01:24.2]} 24. Rab1 {[%clk 0:00:13.7]} 24... Qxc3 {[%clk
0:01:19.4]} 25. Rbc1 {[%clk 0:00:03.8]} 25... Qg3 {[%clk 0:01:15.3]} 0-1

[Event "*** Titled Tuesday Blitz"]
[Site "Chess.com"]
[Date "2020.04.21"]
[Round "5"]
[White "Qingdom"]
[Black "ahappypawn"]
[Result "0-1"]
[WhiteElo "2200"]
[BlackElo "2361"]
[TimeControl "180+1"]
[EndTime "10:55:33 PDT"]
[Termination "ahappypawn won by resignation"]

1. d4 {[%clk 0:02:56.1]} 1... d5 {[%clk 0:02:54.3]} 2. c4 {[%clk 0:02:54.7]}
2... e6 {[%clk 0:02:52.1]} 3. Nc3 {[%clk 0:02:53.1]} 3... Nf6 {[%clk 0:02:52.2]}
4. Bg5 {[%clk 0:02:49.4]} 4... Be7 {[%clk 0:02:47.7]} 5. e3 {[%clk 0:02:47.5]}
5... O-O {[%clk 0:02:43.4]} 6. cxd5 {[%clk 0:02:46]} 6... exd5 {[%clk 0:02:43]}
7. Bd3 {[%clk 0:02:45.9]} 7... h6 {[%clk 0:02:38.2]} 8. Bxf6 {[%clk 0:02:45]}
8... Bxf6 {[%clk 0:02:37.7]} 9. Nge2 {[%clk 0:02:44.2]} 9... b6 {[%clk
0:02:34.2]} 10. b4 {[%clk 0:02:38.6]} 10... Bb7 {[%clk 0:02:17.4]} 11. O-O
{[%clk 0:02:36.3]} 11... Nd7 {[%clk 0:02:17.9]} 12. Qb3 {[%clk 0:02:32.9]} 12...
c6 {[%clk 0:02:11.2]} 13. b5 {[%clk 0:02:28.3]} 13... Nb8 {[%clk 0:01:31.8]} 14.
bxc6 {[%clk 0:02:26.3]} 14... Bxc6 {[%clk 0:01:32]} 15. Nf4 {[%clk 0:02:24]}
15... Qd6 {[%clk 0:01:26.3]} 16. Ncxd5 {[%clk 0:02:20.1]} 16... Nd7 {[%clk
0:01:24]} 17. Nxf6+ {[%clk 0:02:11.9]} 17... Nxf6 {[%clk 0:01:23]} 18. Rac1
{[%clk 0:02:09.8]} 18... Rac8 {[%clk 0:01:20.7]} 19. Ba6 {[%clk 0:02:05.6]}
19... Rc7 {[%clk 0:01:17.5]} 20. Rc3 {[%clk 0:02:00.3]} 20... g5 {[%clk
0:00:56.5]} 21. Ng6 {[%clk 0:01:52.2]} 21... Bd5 {[%clk 0:00:51.6]} 22. Nxf8
{[%clk 0:01:43.7]} 22... Bxb3 {[%clk 0:00:50.2]} 23. Rxc7 {[%clk 0:01:40.6]}
23... Qxc7 {[%clk 0:00:47.5]} 24. axb3 {[%clk 0:01:38.8]} 24... Kxf8 {[%clk
0:00:48.1]} 25. Bc4 {[%clk 0:01:32.3]} 25... Ne4 {[%clk 0:00:47.5]} 26. Rd1
{[%clk 0:01:27.5]} 26... Nc3 {[%clk 0:00:45.6]} 27. Ra1 {[%clk 0:01:25.8]} 27...
b5 {[%clk 0:00:44.8]} 28. Bf1 {[%clk 0:01:23.8]} 28... a5 {[%clk 0:00:40.8]} 29.
g3 {[%clk 0:01:21]} 29... a4 {[%clk 0:00:40.1]} 30. bxa4 {[%clk 0:01:18.2]}
30... bxa4 {[%clk 0:00:41]} 31. Ra3 {[%clk 0:01:16.2]} 31... Qa5 {[%clk
0:00:32.4]} 32. Bd3 {[%clk 0:01:09.8]} 32... Qb4 {[%clk 0:00:31]} 33. Ra1 {[%clk
0:01:09.9]} 33... a3 {[%clk 0:00:31.3]} 34. Kg2 {[%clk 0:01:04.1]} 34... Qb2
{[%clk 0:00:31.1]} 35. Re1 {[%clk 0:01:02.5]} 35... a2 {[%clk 0:00:31.5]} 0-1

[Event "*** Titled Tuesday Blitz"]
[Site "Chess.com"]
[Date "2020.04.21"]
[Round "5"]
[White "Atanejhad"]
[Black "lifeissofun"]
[Result "0-1"]
[WhiteElo "2505"]
[BlackElo "2280"]
[TimeControl "180+1"]
[EndTime "10:55:36 PDT"]
[Termination "lifeissofun won on time"]

1. e4 {[%clk 0:03:00.9]} 1... c5 {[%clk 0:03:00]} 2. Nf3 {[%clk 0:03:00.8]} 2...
d6 {[%clk 0:03:00.6]} 3. d4 {[%clk 0:03:01.4]} 3... cxd4 {[%clk 0:03:01.5]} 4.
Nxd4 {[%clk 0:03:02.3]} 4... Nf6 {[%clk 0:03:00.5]} 5. Nc3 {[%clk 0:03:02.6]}
5... a6 {[%clk 0:03:01.2]} 6. Be3 {[%clk 0:03:02.3]} 6... e5 {[%clk 0:03:01.4]}
7. Nb3 {[%clk 0:03:02.8]} 7... Be6 {[%clk 0:02:59.1]} 8. Qd2 {[%clk 0:03:03]}
8... h5 {[%clk 0:02:58.6]} 9. O-O-O {[%clk 0:03:02.4]} 9... Nbd7 {[%clk
0:02:59.1]} 10. f3 {[%clk 0:03:01.6]} 10... g6 {[%clk 0:02:58.9]} 11. h3 {[%clk
0:03:01.9]} 11... Bg7 {[%clk 0:02:58.9]} 12. Bd3 {[%clk 0:03:00.6]} 12... O-O
{[%clk 0:02:57.9]} 13. Kb1 {[%clk 0:03:01]} 13... b5 {[%clk 0:02:56.3]} 14. g4
{[%clk 0:03:01]} 14... h4 {[%clk 0:02:53.6]} 15. Bg5 {[%clk 0:02:57.5]} 15... b4
{[%clk 0:02:46.1]} 16. Nd5 {[%clk 0:02:53.7]} 16... Bxd5 {[%clk 0:02:44.5]} 17.
exd5 {[%clk 0:02:54.6]} 17... Qb6 {[%clk 0:02:43.6]} 18. Bxh4 {[%clk 0:02:51.5]}
18... a5 {[%clk 0:02:37.3]} 19. Bf2 {[%clk 0:02:44.4]} 19... Qb7 {[%clk
0:02:35.3]} 20. h4 {[%clk 0:02:44.8]} 20... a4 {[%clk 0:02:33.4]} 21. Nc1 {[%clk
0:02:43.6]} 21... Nxd5 {[%clk 0:02:33.6]} 22. Be4 {[%clk 0:02:35.8]} 22... Nc3+
{[%clk 0:02:21.3]} 23. Qxc3 {[%clk 0:02:32]} 23... bxc3 {[%clk 0:02:22.2]} 24.
Bxb7 {[%clk 0:02:31.9]} 24... Rab8 {[%clk 0:02:20.1]} 25. Bc6 {[%clk 0:02:28.4]}
25... Rxb2+ {[%clk 0:02:18.5]} 26. Ka1 {[%clk 0:02:28.4]} 26... Rfb8 {[%clk
0:02:07.7]} 27. Nd3 {[%clk 0:02:27.6]} 27... Rxc2 {[%clk 0:02:07.3]} 28. Bxd7
{[%clk 0:02:20.7]} 28... e4 {[%clk 0:02:07.6]} 29. Rb1 {[%clk 0:01:12]} 29...
Rxb1+ {[%clk 0:02:04.9]} 30. Kxb1 {[%clk 0:01:12.9]} 30... exd3 {[%clk
0:02:05.1]} 31. Be3 {[%clk 0:00:32.5]} 31... Rb2+ {[%clk 0:02:03.1]} 32. Kc1
{[%clk 0:00:32.6]} 32... Rxa2 {[%clk 0:01:53.3]} 33. Kb1 {[%clk 0:00:32]} 33...
Rb2+ {[%clk 0:01:43.8]} 34. Kc1 {[%clk 0:00:31.1]} 34... d2+ {[%clk 0:01:41.5]}
35. Kd1 {[%clk 0:00:28.5]} 35... Rb1+ {[%clk 0:01:40.4]} 0-1

[Event "*** Titled Tuesday Blitz"]
[Site "Chess.com"]
[Date "2020.04.21"]
[Round "5"]
[White "Muracle"]
[Black "JonahWillow"]
[Result "1-0"]
[WhiteElo "2620"]
[BlackElo "2748"]
[TimeControl "180+1"]
[EndTime "10:55:45 PDT"]
[Termination "Muracle won by resignation"]

1. e4 {[%clk 0:03:00.9]} 1... c5 {[%clk 0:03:00]} 2. Nf3 {[%clk 0:03:00.7]} 2...
Nc6 {[%clk 0:02:57.6]} 3. Bb5 {[%clk 0:03:00.4]} 3... g6 {[%clk 0:02:57.1]} 4.
O-O {[%clk 0:03:00]} 4... Bg7 {[%clk 0:02:56.2]} 5. Re1 {[%clk 0:02:59.8]} 5...
Nf6 {[%clk 0:02:56.2]} 6. c3 {[%clk 0:02:56.2]} 6... O-O {[%clk 0:02:49.4]} 7.
d4 {[%clk 0:02:55.8]} 7... d5 {[%clk 0:02:49.4]} 8. exd5 {[%clk 0:02:52.8]} 8...
Nxd5 {[%clk 0:02:40.6]} 9. dxc5 {[%clk 0:02:48.2]} 9... Bg4 {[%clk 0:02:27.2]}
10. h3 {[%clk 0:02:43.3]} 10... Bxf3 {[%clk 0:01:51.8]} 11. Qxf3 {[%clk
0:02:44.2]} 11... a6 {[%clk 0:01:19.7]} 12. Bc4 {[%clk 0:02:41.2]} 12... e6
{[%clk 0:01:00]} 13. Bxd5 {[%clk 0:02:30.8]} 13... exd5 {[%clk 0:00:53.5]} 14.
Bf4 {[%clk 0:02:30.6]} 14... Re8 {[%clk 0:00:49.7]} 15. Nd2 {[%clk 0:02:27.7]}
15... Qd7 {[%clk 0:00:35.1]} 16. Bd6 {[%clk 0:02:23.2]} 16... Bf8 {[%clk
0:00:32.9]} 17. Qxd5 {[%clk 0:02:20.7]} 17... Red8 {[%clk 0:00:30.6]} 18. Ne4
{[%clk 0:02:18.3]} 18... Bg7 {[%clk 0:00:25.8]} 19. Rad1 {[%clk 0:02:11.5]}
19... Re8 {[%clk 0:00:19.3]} 20. Ng5 {[%clk 0:01:46.4]} 20... h6 {[%clk
0:00:17.3]} 21. Nf3 {[%clk 0:01:45]} 21... Rxe1+ {[%clk 0:00:12.7]} 22. Rxe1
{[%clk 0:01:44.7]} 22... Re8 {[%clk 0:00:13.2]} 23. Rxe8+ {[%clk 0:01:27.7]}
23... Qxe8 {[%clk 0:00:14.1]} 24. Bg3 {[%clk 0:01:26.7]} 24... Bf8 {[%clk
0:00:10.7]} 25. Ne5 {[%clk 0:01:11.5]} 25... Nxe5 {[%clk 0:00:09.2]} 26. Bxe5
{[%clk 0:01:11]} 26... Qb5 {[%clk 0:00:09.7]} 27. b4 {[%clk 0:01:07]} 27... a5
{[%clk 0:00:10.3]} 28. Bd4 {[%clk 0:01:04.3]} 28... axb4 {[%clk 0:00:09.8]} 29.
Qe5 {[%clk 0:01:04.1]} 1-0

[Event "*** Titled Tuesday Blitz"]
[Site "Chess.com"]
[Date "2020.04.21"]
[Round "5"]
[White "Poghosyan_Suren"]
[Black "chidori_boruto"]
[Result "0-1"]
[WhiteElo "2482"]
[BlackElo "2651"]
[TimeControl "180+1"]
[EndTime "10:55:47 PDT"]
[Termination "chidori_boruto won by checkmate"]

1. Nf3 {[%clk 0:02:51.7]} 1... Nf6 {[%clk 0:02:58.4]} 2. c4 {[%clk 0:02:50.7]}
2... c6 {[%clk 0:02:55.3]} 3. e3 {[%clk 0:02:50]} 3... d6 {[%clk 0:02:52.6]} 4.
d4 {[%clk 0:02:45.8]} 4... Bg4 {[%clk 0:02:51.8]} 5. Nc3 {[%clk 0:02:45.6]} 5...
Nbd7 {[%clk 0:02:51.6]} 6. h3 {[%clk 0:02:45.5]} 6... Bh5 {[%clk 0:02:51.5]} 7.
Be2 {[%clk 0:02:42.9]} 7... e6 {[%clk 0:02:48.8]} 8. O-O {[%clk 0:02:42.6]} 8...
d5 {[%clk 0:02:48.9]} 9. Ne5 {[%clk 0:02:41.2]} 9... Bxe2 {[%clk 0:02:44.6]} 10.
Qxe2 {[%clk 0:02:40.9]} 10... Nxe5 {[%clk 0:02:43.1]} 11. dxe5 {[%clk
0:02:41.8]} 11... Nd7 {[%clk 0:02:43.4]} 12. f4 {[%clk 0:02:41.7]} 12... Be7
{[%clk 0:02:40.6]} 13. Qg4 {[%clk 0:02:29.4]} 13... g6 {[%clk 0:02:39.6]} 14.
cxd5 {[%clk 0:02:26.6]} 14... cxd5 {[%clk 0:02:39]} 15. Ne2 {[%clk 0:02:26.8]}
15... Rc8 {[%clk 0:02:36.6]} 16. Nd4 {[%clk 0:02:24.8]} 16... Bc5 {[%clk
0:02:33.6]} 17. Kh2 {[%clk 0:02:17.6]} 17... Qb6 {[%clk 0:02:31.6]} 18. Rd1
{[%clk 0:02:05]} 18... O-O {[%clk 0:02:27.2]} 19. h4 {[%clk 0:01:46.3]} 19... h5
{[%clk 0:02:26.6]} 20. Qf3 {[%clk 0:01:44.8]} 20... Be7 {[%clk 0:02:24.2]} 21.
g4 {[%clk 0:01:42.7]} 21... hxg4 {[%clk 0:02:22.4]} 22. Qxg4 {[%clk 0:01:43.6]}
22... Kg7 {[%clk 0:02:22.6]} 23. Kg2 {[%clk 0:01:32.6]} 23... Rh8 {[%clk
0:02:22.7]} 24. Rh1 {[%clk 0:01:33.2]} 24... Nc5 {[%clk 0:02:19.4]} 25. h5
{[%clk 0:01:32.5]} 25... Ne4 {[%clk 0:02:12.9]} 26. f5 {[%clk 0:00:58.8]} 26...
exf5 {[%clk 0:02:06.8]} 27. Nxf5+ {[%clk 0:00:59.7]} 27... Kf8 {[%clk
0:02:07.1]} 28. hxg6 {[%clk 0:00:59]} 28... Rc2+ {[%clk 0:01:55.2]} 29. Kg1
{[%clk 0:00:39.2]} 29... Rxh1+ {[%clk 0:01:54.5]} 30. Kxh1 {[%clk 0:00:38.7]}
30... Qxg6 {[%clk 0:01:53.2]} 31. Qxg6 {[%clk 0:00:32.4]} 31... fxg6 {[%clk
0:01:54.1]} 32. Nd4 {[%clk 0:00:30.6]} 32... Rf2 {[%clk 0:01:45.6]} 33. Kg1
{[%clk 0:00:27.2]} 33... Bh4 {[%clk 0:01:39.2]} 34. b3 {[%clk 0:00:24]} 34...
Bg3 {[%clk 0:01:39]} 35. Ba3+ {[%clk 0:00:23.2]} 35... Ke8 {[%clk 0:01:28.4]}
36. e6 {[%clk 0:00:22.1]} 36... Bh2+ {[%clk 0:01:27.9]} 37. Kh1 {[%clk 0:00:20]}
37... Ng3# {[%clk 0:01:27.8]} 0-1

[Event "*** Titled Tuesday Blitz"]
[Site "Chess.com"]
[Date "2020.04.21"]
[Round "5"]
[White "Nellichka"]
[Black "Yeytruyol"]
[Result "0-1"]
[WhiteElo "2089"]
[BlackElo "2401"]
[TimeControl "180+1"]
[EndTime "10:55:47 PDT"]
[Termination "Yeytruyol won by resignation"]

1. d4 {[%clk 0:03:00.9]} 1... Nf6 {[%clk 0:02:58.5]} 2. c4 {[%clk 0:03:00.2]}
2... c5 {[%clk 0:02:57.4]} 3. d5 {[%clk 0:02:59.2]} 3... e6 {[%clk 0:02:57.8]}
4. Nc3 {[%clk 0:02:57.9]} 4... exd5 {[%clk 0:02:57.8]} 5. cxd5 {[%clk
0:02:57.1]} 5... d6 {[%clk 0:02:58.2]} 6. e4 {[%clk 0:02:56.5]} 6... g6 {[%clk
0:02:58.7]} 7. Nf3 {[%clk 0:02:55.9]} 7... Bg7 {[%clk 0:02:59.1]} 8. Bg5 {[%clk
0:02:56.1]} 8... a6 {[%clk 0:02:53.3]} 9. Be2 {[%clk 0:02:53.1]} 9... b5 {[%clk
0:02:52.3]} 10. O-O {[%clk 0:02:49.9]} 10... O-O {[%clk 0:02:52.7]} 11. Qc2
{[%clk 0:02:46.8]} 11... b4 {[%clk 0:02:51.4]} 12. Nd1 {[%clk 0:02:44.9]} 12...
Nbd7 {[%clk 0:02:51.6]} 13. Nd2 {[%clk 0:02:44.1]} 13... Re8 {[%clk 0:02:50.9]}
14. f3 {[%clk 0:02:38.3]} 14... Qc7 {[%clk 0:02:46.8]} 15. Nc4 {[%clk
0:02:37.1]} 15... Ne5 {[%clk 0:02:44.7]} 16. Nde3 {[%clk 0:02:36.3]} 16... Nxc4
{[%clk 0:02:42.6]} 17. Nxc4 {[%clk 0:02:35.4]} 17... a5 {[%clk 0:02:43.5]} 18.
Bf4 {[%clk 0:02:34.5]} 18... Rd8 {[%clk 0:02:40.4]} 19. Rad1 {[%clk 0:02:27.2]}
19... Ba6 {[%clk 0:02:39.8]} 20. e5 {[%clk 0:02:20.3]} 20... Bxc4 {[%clk
0:01:40.8]} 21. exd6 {[%clk 0:02:10.3]} 21... Qd7 {[%clk 0:01:28.6]} 22. Qxc4
{[%clk 0:02:07.6]} 22... Rdc8 {[%clk 0:01:14.4]} 23. Qb5 {[%clk 0:02:03.2]}
23... Bf8 {[%clk 0:01:08.7]} 24. Bg5 {[%clk 0:01:57.2]} 24... Qf5 {[%clk
0:00:54.4]} 25. h4 {[%clk 0:01:25.4]} 25... Bxd6 {[%clk 0:00:49.8]} 26. Bd3
{[%clk 0:01:15]} 26... Qe5 {[%clk 0:00:44.3]} 27. f4 {[%clk 0:01:14.3]} 27...
Qe3+ {[%clk 0:00:41.5]} 28. Kh1 {[%clk 0:01:10.2]} 28... Ng4 {[%clk 0:00:41.9]}
29. Qd7 {[%clk 0:01:02.8]} 29... Qg3 {[%clk 0:00:36.6]} 0-1

[Event "*** Titled Tuesday Blitz"]
[Site "Chess.com"]
[Date "2020.04.21"]
[Round "5"]
[White "joksijoksi"]
[Black "Halvard"]
[Result "1-0"]
[WhiteElo "2374"]
[BlackElo "2098"]
[TimeControl "180+1"]
[EndTime "10:55:48 PDT"]
[Termination "joksijoksi won by resignation"]

1. e4 {[%clk 0:03:00.9]} 1... c5 {[%clk 0:02:59.4]} 2. Nf3 {[%clk 0:03:01.2]}
2... d6 {[%clk 0:02:59.9]} 3. d4 {[%clk 0:03:01.3]} 3... Nf6 {[%clk 0:03:00.3]}
4. Nc3 {[%clk 0:03:01]} 4... cxd4 {[%clk 0:03:00.5]} 5. Nxd4 {[%clk 0:03:01.9]}
5... a6 {[%clk 0:03:00.9]} 6. Bg5 {[%clk 0:03:01.1]} 6... Nbd7 {[%clk
0:03:00.7]} 7. Qe2 {[%clk 0:02:59.5]} 7... h6 {[%clk 0:02:59.2]} 8. Bh4 {[%clk
0:02:59.7]} 8... g6 {[%clk 0:02:59.6]} 9. f4 {[%clk 0:02:57.2]} 9... e5 {[%clk
0:02:59.1]} 10. fxe5 {[%clk 0:02:54.9]} 10... dxe5 {[%clk 0:02:58.5]} 11. Nb3
{[%clk 0:02:54.8]} 11... Be7 {[%clk 0:02:49.7]} 12. Qf3 {[%clk 0:02:50.3]} 12...
Qc7 {[%clk 0:02:43.9]} 13. Bd3 {[%clk 0:02:46.2]} 13... b5 {[%clk 0:02:40]} 14.
a3 {[%clk 0:02:34.9]} 14... Bb7 {[%clk 0:02:39.8]} 15. O-O {[%clk 0:02:34.1]}
15... O-O {[%clk 0:02:34.9]} 16. Rf2 {[%clk 0:02:19.9]} 16... Rac8 {[%clk
0:02:21.2]} 17. Raf1 {[%clk 0:02:17.8]} 17... Qd6 {[%clk 0:02:18.7]} 18. Kh1
{[%clk 0:01:52.1]} 18... Kg7 {[%clk 0:02:18.2]} 19. Qe3 {[%clk 0:01:41.6]} 19...
Ng4 {[%clk 0:02:03.5]} 20. Bxe7 {[%clk 0:01:38.2]} 20... Qxe7 {[%clk 0:02:02.7]}
21. Qg3 {[%clk 0:01:33.6]} 21... Nxf2+ {[%clk 0:02:01.2]} 22. Rxf2 {[%clk
0:01:34.3]} 22... Nc5 {[%clk 0:01:46.4]} 23. Nxc5 {[%clk 0:01:28.9]} 23... Rxc5
{[%clk 0:01:45.5]} 24. h3 {[%clk 0:01:28.4]} 24... Rc7 {[%clk 0:01:29.1]} 25.
Nd1 {[%clk 0:01:27.4]} 25... Rc6 {[%clk 0:01:25.6]} 26. Ne3 {[%clk 0:01:24.6]}
26... Rf6 {[%clk 0:01:24.3]} 27. Nf5+ {[%clk 0:01:16.5]} 27... Rxf5 {[%clk
0:01:20.6]} 28. exf5 {[%clk 0:01:08.8]} 28... Qg5 {[%clk 0:01:06.7]} 29. Qxe5+
{[%clk 0:01:02.1]} 29... Qf6 {[%clk 0:01:06.8]} 30. Qxf6+ {[%clk 0:00:58.1]}
30... Kxf6 {[%clk 0:01:06.7]} 31. fxg6+ {[%clk 0:00:59]} 31... Kg7 {[%clk
0:01:07]} 32. Rxf7+ {[%clk 0:00:56.1]} 32... Rxf7 {[%clk 0:01:07.1]} 33. gxf7
{[%clk 0:00:57]} 33... Kxf7 {[%clk 0:01:07.8]} 34. Kg1 {[%clk 0:00:57.6]} 34...
Kf6 {[%clk 0:01:07]} 35. Kf2 {[%clk 0:00:56.2]} 35... Ke5 {[%clk 0:01:07.3]} 36.
c3 {[%clk 0:00:55.3]} 36... Kf4 {[%clk 0:01:03.7]} 37. g3+ {[%clk 0:00:54.6]}
37... Ke5 {[%clk 0:01:04.1]} 38. Ke3 {[%clk 0:00:54.5]} 38... Bc8 {[%clk
0:01:02.9]} 39. h4 {[%clk 0:00:53.9]} 39... Be6 {[%clk 0:01:01.9]} 40. a4 {[%clk
0:00:52.4]} 40... bxa4 {[%clk 0:01:00.6]} 41. Bxa6 {[%clk 0:00:52.1]} 41... Bd7
{[%clk 0:01:00.6]} 42. Be2 {[%clk 0:00:51.4]} 42... Bc6 {[%clk 0:00:59.2]} 43.
Bf3 {[%clk 0:00:45.7]} 1-0

[Event "*** Titled Tuesday Blitz"]
[Site "Chess.com"]
[Date "2020.04.21"]
[Round "5"]
[White "temus_galaktionov"]
[Black "DrBergerBerger"]
[Result "1-0"]
[WhiteElo "2749"]
[BlackElo "2449"]
[TimeControl "180+1"]
[EndTime "10:55:51 PDT"]
[Termination "temus_galaktionov won on time"]

1. d4 {[%clk 0:03:00.9]} 1... d5 {[%clk 0:02:59.2]} 2. Nf3 {[%clk 0:03:01.3]}
2... Nf6 {[%clk 0:02:58.4]} 3. c4 {[%clk 0:03:01.8]} 3... dxc4 {[%clk
0:02:58.7]} 4. e3 {[%clk 0:03:01.2]} 4... e6 {[%clk 0:02:58]} 5. Bxc4 {[%clk
0:03:01.4]} 5... a6 {[%clk 0:02:58.3]} 6. O-O {[%clk 0:03:00.3]} 6... c5 {[%clk
0:02:58.1]} 7. a3 {[%clk 0:02:58.9]} 7... Nbd7 {[%clk 0:02:45.3]} 8. dxc5 {[%clk
0:02:57.5]} 8... Bxc5 {[%clk 0:02:43.2]} 9. b4 {[%clk 0:02:56.9]} 9... Be7
{[%clk 0:02:43.6]} 10. Bb2 {[%clk 0:02:56.5]} 10... O-O {[%clk 0:02:43]} 11. Nd4
{[%clk 0:02:53.5]} 11... Nb6 {[%clk 0:02:07.1]} 12. Be2 {[%clk 0:02:49.7]} 12...
e5 {[%clk 0:02:07]} 13. Nf3 {[%clk 0:02:47.2]} 13... e4 {[%clk 0:02:04.6]} 14.
Nfd2 {[%clk 0:02:30.8]} 14... Bf5 {[%clk 0:01:58]} 15. Nc3 {[%clk 0:02:29.8]}
15... Qd7 {[%clk 0:01:41.1]} 16. Nb3 {[%clk 0:02:23.4]} 16... Rfd8 {[%clk
0:01:33.4]} 17. Qxd7 {[%clk 0:02:21.7]} 17... Rxd7 {[%clk 0:01:32.4]} 18. Rfd1
{[%clk 0:02:22.3]} 18... Rad8 {[%clk 0:01:31.7]} 19. Rxd7 {[%clk 0:02:21.1]}
19... Rxd7 {[%clk 0:01:31.1]} 20. Nd4 {[%clk 0:02:21.7]} 20... Bg6 {[%clk
0:01:29.3]} 21. Rc1 {[%clk 0:02:20.9]} 21... h6 {[%clk 0:01:26.3]} 22. h3 {[%clk
0:02:20.1]} 22... Kh7 {[%clk 0:01:20.9]} 23. g4 {[%clk 0:02:14.8]} 23... Nfd5
{[%clk 0:01:19.5]} 24. Nxd5 {[%clk 0:02:13.8]} 24... Nxd5 {[%clk 0:01:20.2]} 25.
Rc8 {[%clk 0:02:11.9]} 25... Bf6 {[%clk 0:01:13.5]} 26. Bc4 {[%clk 0:02:08.7]}
26... Rc7 {[%clk 0:01:09.1]} 27. Rxc7 {[%clk 0:02:04.6]} 27... Nxc7 {[%clk
0:01:10]} 28. Bc3 {[%clk 0:01:55.9]} 28... b5 {[%clk 0:01:06.2]} 29. Bb3 {[%clk
0:01:55.1]} 29... h5 {[%clk 0:01:00.5]} 30. Ne2 {[%clk 0:01:54]} 30... Bxc3
{[%clk 0:00:58]} 31. Nxc3 {[%clk 0:01:54.9]} 31... hxg4 {[%clk 0:00:58.1]} 32.
hxg4 {[%clk 0:01:55.6]} 32... Kh6 {[%clk 0:00:57.6]} 33. Kg2 {[%clk 0:01:54.3]}
33... Kg5 {[%clk 0:00:57.2]} 34. Kg3 {[%clk 0:01:54.3]} 34... f5 {[%clk
0:00:35.1]} 35. gxf5 {[%clk 0:01:53.7]} 35... Kxf5 {[%clk 0:00:28.1]} 36. Bd5
{[%clk 0:01:48.5]} 36... Ke5 {[%clk 0:00:27.2]} 37. Bb7 {[%clk 0:01:48.5]} 37...
Bf5 {[%clk 0:00:25.1]} 38. Kh4 {[%clk 0:01:47.2]} 38... Bh7 {[%clk 0:00:13.3]}
39. Kg5 {[%clk 0:01:46.4]} 39... Bf5 {[%clk 0:00:12.8]} 40. Kh5 {[%clk
0:01:40.9]} 40... Bh7 {[%clk 0:00:12.4]} 41. Kh4 {[%clk 0:01:40.9]} 41... Bf5
{[%clk 0:00:12.1]} 42. Kg5 {[%clk 0:01:41]} 42... Bh7 {[%clk 0:00:11.9]} 43. Bc8
{[%clk 0:01:40.8]} 43... Bg8 {[%clk 0:00:06.6]} 44. Kg6 {[%clk 0:01:41]} 1-0